[Event "Late-Titled-Tuesday-Blitz-February-20-2024"]
[Site "Chess.com"]
[Date "2024.02.20"]
[Round "9"]
[White "dedpihto_v_kozhanom_palto"]
[Black "Zhigalko_Sergei"]
[Result "1/2-1/2"]
[WhiteElo "2716"]
[BlackElo "2926"]
[TimeControl "180+1"]
[EndTime "15:44:20 PST"]
[Termination "Game drawn by repetition"]

1. c4 {[%clk 0:02:59]} 1... e5 {[%clk 0:02:59.9]} 2. Nc3 {[%clk 0:02:59.7]} 2...
Nf6 {[%clk 0:03:00]} 3. Nf3 {[%clk 0:03:00.4]} 3... Nc6 {[%clk 0:03:00.2]} 4. e3
{[%clk 0:03:01.1]} 4... Bb4 {[%clk 0:03:00.3]} 5. Qc2 {[%clk 0:03:01.8]} 5... d6
{[%clk 0:03:00.4]} 6. Nd5 {[%clk 0:03:02]} 6... Ba5 {[%clk 0:03:00.8]} 7. a3
{[%clk 0:03:02.3]} 7... Nxd5 {[%clk 0:03:00.8]} 8. cxd5 {[%clk 0:03:01.3]} 8...
Ne7 {[%clk 0:03:01.5]} 9. b4 {[%clk 0:02:59.7]} 9... Bb6 {[%clk 0:03:01.5]} 10.
Bc4 {[%clk 0:03:00.3]} 10... O-O {[%clk 0:03:00]} 11. Bb2 {[%clk 0:03:00.4]}
11... Bf5 {[%clk 0:02:54.8]} 12. Qb3 {[%clk 0:02:55.9]} 12... Be4 {[%clk
0:02:44.3]} 13. d3 {[%clk 0:02:36.2]} 13... Bxf3 {[%clk 0:02:43.5]} 14. gxf3
{[%clk 0:02:37.1]} 14... Nf5 {[%clk 0:02:42]} 15. Qc2 {[%clk 0:02:17.3]} 15...
Qh4 {[%clk 0:02:36.1]} 16. O-O-O {[%clk 0:02:17]} 16... a5 {[%clk 0:02:14.5]}
17. b5 {[%clk 0:02:15.7]} 17... Qh5 {[%clk 0:02:00.9]} 18. Rhg1 {[%clk 0:01:21]}
18... Qxf3 {[%clk 0:01:50.5]} 19. Kb1 {[%clk 0:01:15]} 19... g6 {[%clk
0:01:37.8]} 20. Rg5 {[%clk 0:01:07.8]} 20... h6 {[%clk 0:01:05.4]} 21. Rgg1
{[%clk 0:01:06.2]} 21... Kh7 {[%clk 0:01:05.7]} 22. h4 {[%clk 0:00:55.9]} 22...
Rae8 {[%clk 0:00:57.8]} 23. h5 {[%clk 0:00:46.8]} 23... Qxh5 {[%clk 0:00:56.5]}
24. Rh1 {[%clk 0:00:42.9]} 24... Qf3 {[%clk 0:00:55.3]} 25. Rdg1 {[%clk
0:00:43.5]} 25... c6 {[%clk 0:00:48.5]} 26. dxc6 {[%clk 0:00:20.2]} 26... bxc6
{[%clk 0:00:49.4]} 27. bxc6 {[%clk 0:00:21.1]} 27... Rb8 {[%clk 0:00:43.7]} 28.
Ka1 {[%clk 0:00:19.3]} 28... Qxc6 {[%clk 0:00:37.4]} 29. e4 {[%clk 0:00:14.5]}
29... Bd4 {[%clk 0:00:09.7]} 30. Bxd4 {[%clk 0:00:12.4]} 30... Nxd4 {[%clk
0:00:10.3]} 31. Qd2 {[%clk 0:00:08.1]} 31... h5 {[%clk 0:00:10.6]} 32. Rxh5+
{[%clk 0:00:02.2]} 32... gxh5 {[%clk 0:00:11.5]} 33. Qg5 {[%clk 0:00:02.6]}
33... Nc2+ {[%clk 0:00:11.9]} 34. Ka2 {[%clk 0:00:03]} 34... Nb4+ {[%clk
0:00:12.6]} 35. Ka1 {[%clk 0:00:03.6]} 35... Nc2+ {[%clk 0:00:12.9]} 36. Ka2
{[%clk 0:00:04.3]} 36... Nb4+ {[%clk 0:00:03.5]} 37. Ka1 {[%clk 0:00:04.7]}
37... Nc2+ {[%clk 0:00:03.1]} 1/2-1/2

[Event "Late-Titled-Tuesday-Blitz-February-20-2024"]
[Site "Chess.com"]
[Date "2024.02.20"]
[Round "9"]
[White "Ready4abattle"]
[Black "cukricek"]
[Result "0-1"]
[WhiteElo "2279"]
[BlackElo "2451"]
[TimeControl "180+1"]
[EndTime "15:44:20 PST"]
[Termination "cukricek won by resignation"]

1. e4 {[%clk 0:03:00.9]} 1... c5 {[%clk 0:02:59.8]} 2. Nf3 {[%clk 0:03:01.1]}
2... g6 {[%clk 0:03:00.2]} 3. d4 {[%clk 0:03:00.9]} 3... cxd4 {[%clk 0:03:00.9]}
4. Nxd4 {[%clk 0:03:01.4]} 4... Nc6 {[%clk 0:03:01.5]} 5. c4 {[%clk 0:03:00.9]}
5... Nf6 {[%clk 0:03:00.5]} 6. Nc3 {[%clk 0:03:00.6]} 6... d6 {[%clk 0:03:00.9]}
7. f3 {[%clk 0:02:58.9]} 7... Nxd4 {[%clk 0:03:00.8]} 8. Qxd4 {[%clk 0:02:58.5]}
8... Bg7 {[%clk 0:03:01.5]} 9. Be3 {[%clk 0:02:57.3]} 9... O-O {[%clk
0:03:01.9]} 10. Qd2 {[%clk 0:02:56.5]} 10... a5 {[%clk 0:03:02.4]} 11. Be2
{[%clk 0:02:50.7]} 11... a4 {[%clk 0:03:01.2]} 12. Kf2 {[%clk 0:02:43.7]} 12...
Qa5 {[%clk 0:02:56.6]} 13. Rab1 {[%clk 0:02:34.6]} 13... Be6 {[%clk 0:02:54.5]}
14. Rhc1 {[%clk 0:02:24.3]} 14... Rfc8 {[%clk 0:02:51.3]} 15. b4 {[%clk
0:02:21.4]} 15... axb3 {[%clk 0:02:47.8]} 16. axb3 {[%clk 0:02:21.5]} 16... Qb4
{[%clk 0:02:41.7]} 17. Rc2 {[%clk 0:02:11.1]} 17... Ra3 {[%clk 0:02:34.6]} 18.
Nb5 {[%clk 0:02:06.1]} 18... Qxd2 {[%clk 0:02:29.5]} 19. Rxd2 {[%clk 0:02:06]}
19... Ra5 {[%clk 0:02:22.7]} 20. Bb6 {[%clk 0:01:56.7]} 20... Ra6 {[%clk
0:02:21.8]} 21. Bd4 {[%clk 0:01:57.3]} 21... Nd7 {[%clk 0:02:21.7]} 22. f4
{[%clk 0:01:52.2]} 22... Nc5 {[%clk 0:02:06.8]} 23. Ke3 {[%clk 0:01:51.6]} 23...
Bd7 {[%clk 0:01:58.8]} 24. Nc3 {[%clk 0:01:20.6]} 24... Ra3 {[%clk 0:01:41.5]}
25. Bxg7 {[%clk 0:01:11.5]} 25... Kxg7 {[%clk 0:01:12.6]} 26. Bd1 {[%clk
0:01:11.7]} 26... b5 {[%clk 0:01:06.1]} 27. Nxb5 {[%clk 0:01:07.3]} 27... Bxb5
{[%clk 0:01:04.7]} 28. cxb5 {[%clk 0:01:08.2]} 28... Rb8 {[%clk 0:01:04.1]} 29.
e5 {[%clk 0:00:59.3]} 29... dxe5 {[%clk 0:01:01.8]} 30. fxe5 {[%clk 0:00:59.6]}
30... Rxb5 {[%clk 0:01:01.3]} 31. Rdb2 {[%clk 0:00:49.9]} 31... Nd7 {[%clk
0:00:44.8]} 32. Kd4 {[%clk 0:00:43.3]} 32... Rxe5 {[%clk 0:00:28.5]} 33. Bg4
{[%clk 0:00:42.3]} 33... f5 {[%clk 0:00:27.1]} 34. Bf3 {[%clk 0:00:40.7]} 34...
Kf6 {[%clk 0:00:20.6]} 35. b4 {[%clk 0:00:41.1]} 35... Nb6 {[%clk 0:00:16.2]}
36. b5 {[%clk 0:00:40.8]} 36... Ra4+ {[%clk 0:00:14.4]} 37. Rb4 {[%clk
0:00:37.5]} 37... Rxb5 {[%clk 0:00:12.8]} 38. Rxa4 {[%clk 0:00:30]} 38... Rxb1
{[%clk 0:00:13.7]} 39. Ra6 {[%clk 0:00:30.9]} 39... e5+ {[%clk 0:00:12]} 40. Kc5
{[%clk 0:00:31]} 40... e4 {[%clk 0:00:11.4]} 41. Be2 {[%clk 0:00:28.2]} 41...
Ke5 {[%clk 0:00:10.9]} 42. Rxb6 {[%clk 0:00:27.3]} 42... Rxb6 {[%clk 0:00:11.8]}
43. Kxb6 {[%clk 0:00:27.9]} 43... Kd4 {[%clk 0:00:11.8]} 44. Kc6 {[%clk
0:00:27.6]} 44... Ke3 {[%clk 0:00:12.3]} 45. Bb5 {[%clk 0:00:25.5]} 45... Kf2
{[%clk 0:00:12.3]} 46. g3 {[%clk 0:00:19.3]} 46... Kg2 {[%clk 0:00:12.6]} 47.
Kd5 {[%clk 0:00:19.1]} 47... Kxh2 {[%clk 0:00:12.8]} 48. Ke5 {[%clk 0:00:19.7]}
48... Kxg3 {[%clk 0:00:13.3]} 49. Kf6 {[%clk 0:00:15.9]} 49... f4 {[%clk
0:00:12.6]} 0-1

[Event "Late-Titled-Tuesday-Blitz-February-20-2024"]
[Site "Chess.com"]
[Date "2024.02.20"]
[Round "9"]
[White "jactorres"]
[Black "boguszp"]
[Result "0-1"]
[WhiteElo "2367"]
[BlackElo "2012"]
[TimeControl "180+1"]
[EndTime "15:44:20 PST"]
[Termination "boguszp won on time"]

1. e4 {[%clk 0:03:00.9]} 1... e6 {[%clk 0:02:56.9]} 2. d4 {[%clk 0:03:01]} 2...
d5 {[%clk 0:02:57.2]} 3. Nd2 {[%clk 0:03:01.5]} 3... c5 {[%clk 0:02:53.8]} 4.
exd5 {[%clk 0:03:00.5]} 4... Qxd5 {[%clk 0:02:54.1]} 5. Ngf3 {[%clk 0:02:59.9]}
5... cxd4 {[%clk 0:02:53.6]} 6. Bc4 {[%clk 0:03:00.2]} 6... Qd6 {[%clk
0:02:52.6]} 7. O-O {[%clk 0:03:00.4]} 7... Nf6 {[%clk 0:02:52.3]} 8. Nb3 {[%clk
0:03:00.5]} 8... Nc6 {[%clk 0:02:52.4]} 9. Nbxd4 {[%clk 0:03:00.8]} 9... Nxd4
{[%clk 0:02:51.9]} 10. Qxd4 {[%clk 0:03:01.7]} 10... Qxd4 {[%clk 0:02:48.1]} 11.
Nxd4 {[%clk 0:03:02.6]} 11... a6 {[%clk 0:02:47.5]} 12. Be2 {[%clk 0:03:02.4]}
12... Bc5 {[%clk 0:02:42.5]} 13. Nb3 {[%clk 0:03:02.1]} 13... Bb6 {[%clk
0:02:41.6]} 14. Bf3 {[%clk 0:03:02.4]} 14... O-O {[%clk 0:02:38.7]} 15. a4
{[%clk 0:02:54.9]} 15... Rd8 {[%clk 0:02:37.6]} 16. Bg5 {[%clk 0:02:50.8]} 16...
h6 {[%clk 0:02:34.9]} 17. Bh4 {[%clk 0:02:45.1]} 17... g5 {[%clk 0:02:30]} 18.
Bg3 {[%clk 0:02:44.9]} 18... g4 {[%clk 0:02:26.9]} 19. Be2 {[%clk 0:02:43.5]}
19... Bd7 {[%clk 0:02:20.8]} 20. Bh4 {[%clk 0:02:39.6]} 20... Kg7 {[%clk
0:02:18.1]} 21. Rad1 {[%clk 0:02:39.1]} 21... Bc6 {[%clk 0:02:16.7]} 22. a5
{[%clk 0:02:37.5]} 22... Bc7 {[%clk 0:02:09.1]} 23. Bxf6+ {[%clk 0:02:25.9]}
23... Kxf6 {[%clk 0:02:08.2]} 24. Bxg4 {[%clk 0:02:26.3]} 24... Rg8 {[%clk
0:01:47.8]} 25. f3 {[%clk 0:02:22.7]} 25... Rg7 {[%clk 0:01:36.9]} 26. Nd4
{[%clk 0:01:19.5]} 26... Bd5 {[%clk 0:01:29.1]} 27. b3 {[%clk 0:01:07.8]} 27...
Bxa5 {[%clk 0:01:27]} 28. c4 {[%clk 0:01:07.5]} 28... Bc6 {[%clk 0:01:21.8]} 29.
Nxc6 {[%clk 0:01:06.3]} 29... bxc6 {[%clk 0:01:21.5]} 30. Rd6 {[%clk 0:00:56.3]}
30... Bb6+ {[%clk 0:01:18.5]} 31. Kh1 {[%clk 0:00:54.7]} 31... Rc8 {[%clk
0:01:16.4]} 32. Ra1 {[%clk 0:00:53.3]} 32... a5 {[%clk 0:01:16.2]} 33. Rad1
{[%clk 0:00:50.1]} 33... Rg5 {[%clk 0:01:14.1]} 34. h4 {[%clk 0:00:42.7]} 34...
Re5 {[%clk 0:01:12.2]} 35. f4 {[%clk 0:00:38.2]} 35... Re4 {[%clk 0:01:09.3]}
36. g3 {[%clk 0:00:26.3]} 36... Re3 {[%clk 0:01:09.1]} 37. R6d3 {[%clk
0:00:25.6]} 37... Rxd3 {[%clk 0:01:05.6]} 38. Rxd3 {[%clk 0:00:25.5]} 38... Rd8
{[%clk 0:01:04.9]} 39. Rxd8 {[%clk 0:00:24.4]} 39... Bxd8 {[%clk 0:01:04.5]} 40.
Bf3 {[%clk 0:00:24.4]} 40... c5 {[%clk 0:01:02.9]} 41. Be4 {[%clk 0:00:18.7]}
41... Ke7 {[%clk 0:01:01]} 42. Kg2 {[%clk 0:00:17]} 42... f5 {[%clk 0:01:01.2]}
43. Bf3 {[%clk 0:00:14.9]} 43... Kd6 {[%clk 0:01:01.4]} 44. Kf2 {[%clk
0:00:14.9]} 44... e5 {[%clk 0:01:01.3]} 45. fxe5+ {[%clk 0:00:14.4]} 45... Kxe5
{[%clk 0:01:01.8]} 46. Ke3 {[%clk 0:00:14.9]} 46... Bf6 {[%clk 0:00:59]} 47. Bh5
{[%clk 0:00:14.9]} 47... Bg7 {[%clk 0:00:57.6]} 48. Bf7 {[%clk 0:00:14.8]} 48...
Bf6 {[%clk 0:00:56.7]} 49. Bd5 {[%clk 0:00:14.6]} 49... Be7 {[%clk 0:00:55]} 50.
Bc6 {[%clk 0:00:14.1]} 50... Bd6 {[%clk 0:00:54.4]} 51. Bd5 {[%clk 0:00:14.1]}
51... Kf6 {[%clk 0:00:54.1]} 52. Kf3 {[%clk 0:00:14.5]} 52... Ke5 {[%clk
0:00:53.7]} 53. Bf7 {[%clk 0:00:13.9]} 53... Kd4 {[%clk 0:00:52.4]} 54. Bg6
{[%clk 0:00:12.7]} 54... Kc3 {[%clk 0:00:51.3]} 55. Bxf5 {[%clk 0:00:12.2]}
55... Kxb3 {[%clk 0:00:51.9]} 56. g4 {[%clk 0:00:04.4]} 56... a4 {[%clk
0:00:51.9]} 57. g5 {[%clk 0:00:04.6]} 57... hxg5 {[%clk 0:00:51.3]} 58. hxg5
{[%clk 0:00:03.7]} 58... Be7 {[%clk 0:00:51.1]} 59. g6 {[%clk 0:00:03.6]} 59...
Bf6 {[%clk 0:00:51.2]} 60. Bb1 {[%clk 0:00:03.4]} 60... a3 {[%clk 0:00:51.2]}
0-1

[Event "Late-Titled-Tuesday-Blitz-February-20-2024"]
[Site "Chess.com"]
[Date "2024.02.20"]
[Round "9"]
[White "mbojan"]
[Black "FairChess_on_YouTube"]
[Result "0-1"]
[WhiteElo "2902"]
[BlackElo "3068"]
[TimeControl "180+1"]
[EndTime "15:44:22 PST"]
[Termination "FairChess_on_YouTube won on time"]

1. Nf3 {[%clk 0:03:00.9]} 1... Nf6 {[%clk 0:02:59.1]} 2. d4 {[%clk 0:02:57.8]}
2... e6 {[%clk 0:02:58.8]} 3. c4 {[%clk 0:02:54.7]} 3... b6 {[%clk 0:02:57.1]}
4. a3 {[%clk 0:02:51.5]} 4... Bb7 {[%clk 0:02:54.6]} 5. Bf4 {[%clk 0:02:51.9]}
5... g6 {[%clk 0:02:46.3]} 6. Nc3 {[%clk 0:02:50.7]} 6... Bg7 {[%clk 0:02:46.5]}
7. e3 {[%clk 0:02:51.1]} 7... O-O {[%clk 0:02:44.3]} 8. Bd3 {[%clk 0:02:50.7]}
8... d6 {[%clk 0:02:43.8]} 9. h3 {[%clk 0:02:42.3]} 9... Nbd7 {[%clk 0:02:41.7]}
10. Bh2 {[%clk 0:02:42.3]} 10... Re8 {[%clk 0:02:38.5]} 11. O-O {[%clk
0:02:42.3]} 11... e5 {[%clk 0:02:38.9]} 12. Be2 {[%clk 0:02:42.9]} 12... Ne4
{[%clk 0:02:35.6]} 13. Nd5 {[%clk 0:02:28.8]} 13... c6 {[%clk 0:02:28.4]} 14.
Nb4 {[%clk 0:02:14.8]} 14... a5 {[%clk 0:02:23.3]} 15. Nc2 {[%clk 0:02:12.8]}
15... c5 {[%clk 0:02:21.5]} 16. d5 {[%clk 0:02:10.5]} 16... f5 {[%clk
0:02:16.7]} 17. a4 {[%clk 0:02:01]} 17... Bc8 {[%clk 0:02:12.4]} 18. Na3 {[%clk
0:02:00.4]} 18... Nb8 {[%clk 0:02:09.4]} 19. Nb5 {[%clk 0:01:58.9]} 19... Na6
{[%clk 0:02:09.3]} 20. Ne1 {[%clk 0:01:59.1]} 20... Nb4 {[%clk 0:02:08.8]} 21.
Nd3 {[%clk 0:01:57.7]} 21... Bd7 {[%clk 0:02:02.9]} 22. f3 {[%clk 0:01:43.2]}
22... Bxb5 {[%clk 0:01:57.7]} 23. fxe4 {[%clk 0:01:26.7]} 23... Bd7 {[%clk
0:01:51.6]} 24. Nxb4 {[%clk 0:01:18.8]} 24... axb4 {[%clk 0:01:50.7]} 25. exf5
{[%clk 0:01:12.2]} 25... gxf5 {[%clk 0:01:46.9]} 26. e4 {[%clk 0:00:39.7]} 26...
f4 {[%clk 0:01:43.9]} 27. Bg4 {[%clk 0:00:31.9]} 27... Kh8 {[%clk 0:01:37.9]}
28. b3 {[%clk 0:00:29.8]} 28... Rg8 {[%clk 0:01:37.5]} 29. Bxd7 {[%clk
0:00:20.1]} 29... Qxd7 {[%clk 0:01:37.3]} 30. Kh1 {[%clk 0:00:20.7]} 30... Bf6
{[%clk 0:01:32.4]} 31. Qf3 {[%clk 0:00:10.5]} 31... Rg6 {[%clk 0:01:30.4]} 32.
Ra2 {[%clk 0:00:10.3]} 32... Rag8 {[%clk 0:01:30.3]} 33. Rfa1 {[%clk 0:00:08]}
33... Qg7 {[%clk 0:01:27.3]} 34. Rc2 {[%clk 0:00:07.3]} 34... Bd8 {[%clk
0:01:18.2]} 35. Rb2 {[%clk 0:00:07.2]} 35... Qh6 {[%clk 0:01:18.3]} 36. Rc2
{[%clk 0:00:07.8]} 36... Qh4 {[%clk 0:01:18.2]} 37. Rd2 {[%clk 0:00:07.8]} 37...
Rg3 {[%clk 0:01:12]} 38. Bxg3 {[%clk 0:00:07.8]} 38... Rxg3 {[%clk 0:01:12.9]}
39. Qf1 {[%clk 0:00:02.4]} 39... f3 {[%clk 0:01:11.9]} 40. Raa2 {[%clk
0:00:01.2]} 40... Qxe4 {[%clk 0:00:33.3]} 41. gxf3 {[%clk 0:00:01.4]} 41... Rxf3
{[%clk 0:00:30.5]} 42. Qg2 {[%clk 0:00:02]} 42... Rxh3+ {[%clk 0:00:30.4]} 43.
Kg1 {[%clk 0:00:02.2]} 43... Qe1+ {[%clk 0:00:30]} 44. Qf1 {[%clk 0:00:01.9]}
44... Rh1+ {[%clk 0:00:29.6]} 45. Kxh1 {[%clk 0:00:01.6]} 45... Qxf1+ {[%clk
0:00:30.5]} 46. Kh2 {[%clk 0:00:02.5]} 46... Bg5 {[%clk 0:00:30]} 47. Rf2 {[%clk
0:00:02.9]} 47... Bf4+ {[%clk 0:00:30.3]} 0-1

[Event "Late-Titled-Tuesday-Blitz-February-20-2024"]
[Site "Chess.com"]
[Date "2024.02.20"]
[Round "9"]
[White "Cristi_Coca"]
[Black "Felix-Rose"]
[Result "1-0"]
[WhiteElo "2379"]
[BlackElo "2262"]
[TimeControl "180+1"]
[EndTime "15:44:22 PST"]
[Termination "Cristi_Coca won on time"]

1. e4 {[%clk 0:03:00.9]} 1... e5 {[%clk 0:02:59.7]} 2. Nf3 {[%clk 0:03:00.7]}
2... Nc6 {[%clk 0:03:00.1]} 3. Bc4 {[%clk 0:03:01.3]} 3... Nf6 {[%clk
0:03:00.3]} 4. d3 {[%clk 0:03:01.2]} 4... Bc5 {[%clk 0:03:00.2]} 5. c3 {[%clk
0:03:01.6]} 5... d6 {[%clk 0:03:00.5]} 6. Nbd2 {[%clk 0:03:01.5]} 6... a5 {[%clk
0:03:00.2]} 7. Bb3 {[%clk 0:03:01.4]} 7... Ba7 {[%clk 0:03:00.2]} 8. O-O {[%clk
0:03:00.8]} 8... O-O {[%clk 0:03:00]} 9. Re1 {[%clk 0:03:01.2]} 9... Ne7 {[%clk
0:03:00.1]} 10. d4 {[%clk 0:03:00.6]} 10... Ng6 {[%clk 0:02:59.6]} 11. Nf1
{[%clk 0:03:00]} 11... c6 {[%clk 0:02:58.5]} 12. Ng3 {[%clk 0:02:59.5]} 12... h6
{[%clk 0:02:55.8]} 13. Be3 {[%clk 0:02:55.5]} 13... Re8 {[%clk 0:02:44.4]} 14.
dxe5 {[%clk 0:02:54.3]} 14... dxe5 {[%clk 0:02:41.7]} 15. Bxa7 {[%clk
0:02:51.5]} 15... Rxa7 {[%clk 0:02:42.6]} 16. Qxd8 {[%clk 0:02:51.7]} 16... Rxd8
{[%clk 0:02:43.2]} 17. Rad1 {[%clk 0:02:52.4]} 17... Re8 {[%clk 0:02:39.3]} 18.
Nf5 {[%clk 0:02:46.6]} 18... a4 {[%clk 0:02:35.8]} 19. Bc2 {[%clk 0:02:41.7]}
19... Be6 {[%clk 0:02:30.4]} 20. a3 {[%clk 0:02:34.5]} 20... Raa8 {[%clk
0:02:30.2]} 21. Nd6 {[%clk 0:02:33.5]} 21... Re7 {[%clk 0:02:27.7]} 22. c4
{[%clk 0:02:23.1]} 22... Ne8 {[%clk 0:02:15.1]} 23. c5 {[%clk 0:02:21.2]} 23...
f6 {[%clk 0:01:52.2]} 24. Rd2 {[%clk 0:02:15.7]} 24... Nxd6 {[%clk 0:01:43.3]}
25. Rxd6 {[%clk 0:02:16.6]} 25... Kf7 {[%clk 0:01:39.6]} 26. g3 {[%clk 0:02:11]}
26... Ra5 {[%clk 0:01:39.2]} 27. Nd2 {[%clk 0:01:21.3]} 27... Nf8 {[%clk
0:01:25.2]} 28. f4 {[%clk 0:01:17.7]} 28... exf4 {[%clk 0:01:01.3]} 29. gxf4
{[%clk 0:01:17.2]} 29... Rxc5 {[%clk 0:01:00.6]} 30. Bxa4 {[%clk 0:01:16.5]}
30... b5 {[%clk 0:00:52.8]} 31. Bd1 {[%clk 0:00:58.4]} 31... Rc1 {[%clk
0:00:50.1]} 32. Bh5+ {[%clk 0:00:58.2]} 32... g6 {[%clk 0:00:47.1]} 33. Bxg6+
{[%clk 0:00:55.2]} 33... Nxg6 {[%clk 0:00:46.5]} 34. Rxc1 {[%clk 0:00:54.2]}
34... Nxf4 {[%clk 0:00:44.5]} 35. Rcxc6 {[%clk 0:00:48.9]} 35... Ke8 {[%clk
0:00:25.5]} 36. Nf3 {[%clk 0:00:39.1]} 36... Bd7 {[%clk 0:00:21.5]} 37. Ra6
{[%clk 0:00:35.1]} 37... Rg7+ {[%clk 0:00:15.8]} 38. Kf2 {[%clk 0:00:34.2]}
38... Rg2+ {[%clk 0:00:13.3]} 39. Ke3 {[%clk 0:00:34.6]} 39... Ng6 {[%clk
0:00:07.4]} 40. Rxf6 {[%clk 0:00:30.4]} 40... Ne7 {[%clk 0:00:02.2]} 41. Ra8+
{[%clk 0:00:26.4]} 41... Nc8 {[%clk 0:00:02.6]} 42. Ne5 {[%clk 0:00:23.3]} 1-0

[Event "Late-Titled-Tuesday-Blitz-February-20-2024"]
[Site "Chess.com"]
[Date "2024.02.20"]
[Round "9"]
[White "Zkid"]
[Black "AlexTruskavetsky"]
[Result "1-0"]
[WhiteElo "2935"]
[BlackElo "2737"]
[TimeControl "180+1"]
[EndTime "15:44:34 PST"]
[Termination "Zkid won on time"]

1. e4 {[%clk 0:03:00.9]} 1... c5 {[%clk 0:02:58.4]} 2. Nf3 {[%clk 0:03:00.9]}
2... Nc6 {[%clk 0:02:58.2]} 3. Bb5 {[%clk 0:03:00.1]} 3... g6 {[%clk 0:02:58.3]}
4. O-O {[%clk 0:02:58.8]} 4... Bg7 {[%clk 0:02:58.4]} 5. c3 {[%clk 0:02:59.1]}
5... e5 {[%clk 0:02:58.7]} 6. Re1 {[%clk 0:02:54.5]} 6... Nge7 {[%clk
0:02:58.5]} 7. d3 {[%clk 0:02:52.8]} 7... O-O {[%clk 0:02:57.2]} 8. Nbd2 {[%clk
0:02:47.2]} 8... a6 {[%clk 0:02:57.4]} 9. Ba4 {[%clk 0:02:47.4]} 9... b5 {[%clk
0:02:57.5]} 10. Bb3 {[%clk 0:02:46.9]} 10... d6 {[%clk 0:02:56.9]} 11. Nf1
{[%clk 0:02:46.3]} 11... h6 {[%clk 0:02:56.9]} 12. a4 {[%clk 0:02:45.4]} 12...
Rb8 {[%clk 0:02:56.6]} 13. axb5 {[%clk 0:02:44.9]} 13... axb5 {[%clk 0:02:57.5]}
14. Ne3 {[%clk 0:02:45.2]} 14... Kh8 {[%clk 0:02:57.1]} 15. Nd5 {[%clk
0:02:39.8]} 15... Nxd5 {[%clk 0:02:57.2]} 16. Bxd5 {[%clk 0:02:40.1]} 16... Ne7
{[%clk 0:02:57.3]} 17. Bb3 {[%clk 0:02:39.8]} 17... f5 {[%clk 0:02:57]} 18. Bc2
{[%clk 0:02:21.9]} 18... f4 {[%clk 0:02:56.1]} 19. d4 {[%clk 0:02:21.1]} 19...
g5 {[%clk 0:02:51.8]} 20. dxe5 {[%clk 0:02:11.3]} 20... dxe5 {[%clk 0:02:51.9]}
21. Qe2 {[%clk 0:02:11.6]} 21... Be6 {[%clk 0:02:51.2]} 22. Rd1 {[%clk
0:02:07.6]} 22... Qb6 {[%clk 0:02:50.7]} 23. b3 {[%clk 0:02:03.6]} 23... Ng6
{[%clk 0:02:48.6]} 24. Bb2 {[%clk 0:01:56.6]} 24... g4 {[%clk 0:02:48.4]} 25.
Ne1 {[%clk 0:01:56.4]} 25... f3 {[%clk 0:02:45.4]} 26. Qe3 {[%clk 0:01:54.1]}
26... fxg2 {[%clk 0:02:45.8]} 27. Nxg2 {[%clk 0:01:52.8]} 27... Rf3 {[%clk
0:02:45.5]} 28. Qe1 {[%clk 0:01:52.9]} 28... Rbf8 {[%clk 0:02:45.6]} 29. Rd2
{[%clk 0:01:51.9]} 29... h5 {[%clk 0:02:44.5]} 30. Rad1 {[%clk 0:01:50.7]} 30...
Qb7 {[%clk 0:02:33.7]} 31. Rd6 {[%clk 0:01:49]} 31... Qf7 {[%clk 0:02:33]} 32.
R1d2 {[%clk 0:01:44.6]} 32... Bh6 {[%clk 0:02:31.7]} 33. Re2 {[%clk 0:01:41.5]}
33... Qe7 {[%clk 0:02:30.2]} 34. Rb6 {[%clk 0:01:37.4]} 34... h4 {[%clk
0:02:26.3]} 35. c4 {[%clk 0:01:22]} 35... bxc4 {[%clk 0:01:42.8]} 36. bxc4
{[%clk 0:01:04.3]} 36... h3 {[%clk 0:01:43.3]} 37. Ne3 {[%clk 0:01:02.3]} 37...
Bg7 {[%clk 0:01:12.5]} 38. Nf5 {[%clk 0:00:58.6]} 38... Bxf5 {[%clk 0:01:09]}
39. exf5 {[%clk 0:00:59.1]} 39... Nh4 {[%clk 0:01:05.4]} 40. Rxe5 {[%clk
0:00:55.5]} 40... Bxe5 {[%clk 0:00:11.8]} 41. Bxe5+ {[%clk 0:00:53.1]} 41... Kg8
{[%clk 0:00:12.4]} 42. Rh6 {[%clk 0:00:15.9]} 42... Re8 {[%clk 0:00:02.7]} 43.
Rh8+ {[%clk 0:00:14.2]} 43... Kf7 {[%clk 0:00:03.2]} 44. Rh7+ {[%clk 0:00:14.8]}
44... Kg8 {[%clk 0:00:03.9]} 45. Rxe7 {[%clk 0:00:14.7]} 45... Rxe7 {[%clk
0:00:04.8]} 46. Qe4 {[%clk 0:00:11.9]} 46... Kh7 {[%clk 0:00:01]} 47. f6+ {[%clk
0:00:11]} 1-0